bitfinex-derivatives/quotes_ETHF0:USTF0_20230104
["timestamp","ask_amount","ask_price","bid_price","bid_amount"]
[1672834372521,1.598,1253.3,1253.2,2.97230118]
[1672834377264,1.598,1253.3,1253.2,1.78402925]
[1672834380310,1.598,1253.3,1253.2,4.16273491]
[1672834382094,1.598,1253.3,1253.2,2.37870566]
[1672834386082,1.598,1253.3,1253.2,1.78554111]
[1672834386717,1.598,1253.3,1253.2,4.16424677]
[1672834392495,1.598,1253.3,1253.2,2.37870566]
[1672834393963,1.598,1253.3,1253.2,1.78601742]
[1672834399434,4.6053,1253.3,1253.2,1.78601742]
[1672834399751,4.6053,1253.3,1253.2,2.97663632]
[1672834400064,4.6053,1253.3,1253.2,1.78601742]
[1672834400380,4.6053,1253.3,1253.2,2.97658678]
[1672834400694,4.6053,1253.3,1253.2,1.19056936]
[1672834401108,1.598,1253.3,1253.2,1.19056936]
[1672834401324,4.6053,1253.3,1253.2,1.19056936]
[1672834402169,4.6053,1253.3,1253.2,2.97658678]
[1672834403113,1.598,1253.3,1253.2,1.78601742]
[1672834403318,1.598,1253.3,1253.2,2.97640368]
[1672834403528,1.598,1253.3,1253.2,1.78601742]
[1672834403738,1.598,1253.3,1253.2,4.16472308]
[1672834404789,1.598,1253.3,1253.2,2.37870566]
[1672834406053,1.598,1253.3,1253.2,4.16410001]
[1672834408571,1.598,1253.3,1253.2,2.37870566]
[1672834410467,1.598,1253.3,1253.2,4.16419521]
[1672834410886,1.598,1253.3,1253.2,2.37870566]
[1672834413101,1.598,1253.3,1253.2,4.1641706]
[1672834413521,3.196,1253.3,1253.2,4.1641706]
[1672834416563,3.196,1253.3,1253.2,4.39208699]
[1672834417618,3.196,1253.3,1253.2,2.97783988]
[1672834417827,3.196,1253.3,1253.2,4.39208699]
[1672834418253,3.196,1253.3,1253.2,6.77225718]
[1672834420167,3.196,1253.3,1253.2,3.7944173]
[1672834420612,3.196,1253.3,1253.2,6.77225718]
[1672834421008,3.196,1253.3,1253.2,5.35801007]
[1672834421223,3.196,1253.3,1253.2,6.77225718]
[1672834422059,3.196,1253.3,1253.2,3.7944173]
[1672834424383,1.598,1253.3,1253.2,3.7944173]
[1672834434682,1.598,1253.3,1253.2,6.8017173]
[1672834435240,1.598,1253.3,1253.2,3.7944173]
[1672834435417,1.598,1253.3,1253.2,5.38747019]
[1672834435627,1.598,1253.3,1253.2,6.8017173]
[1672834435846,1.598,1253.3,1253.2,3.7944173]
[1672834436047,1.598,1253.3,1253.2,5.38747019]
[1672834436259,1.598,1253.3,1253.2,6.8017173]
[1672834436692,1.598,1253.3,1253.2,3.7944173]
[1672834436903,1.598,1253.3,1253.2,5.38747019]
[1672834437110,1.598,1253.3,1253.2,6.8017173]
[1672834438257,1.598,1253.3,1253.2,5.38747019]
[1672834439619,1.598,1253.3,1253.2,6.8017665]
[1672834439833,1.598,1253.3,1253.2,3.7944665]
[1672834440151,1.598,1253.3,1253.2,5.38747019]
[1672834440406,1.598,1253.3,1253.2,6.8017665]
[1672834440580,1.598,1253.3,1253.2,3.7944665]
[1672834440890,1.598,1253.3,1253.2,6.8017665]
[1672834442361,1.598,1253.3,1253.2,3.7944665]
[1672834442562,1.598,1253.3,1253.2,2.38017019]
[1672834444980,1.598,1253.3,1253.2,3.79451018]
[1672834446232,1.598,1253.3,1253.2,4.1655259]
[1672834446560,1.598,1253.3,1253.2,2.38017019]
[1672834447698,1.598,1253.3,1253.2,4.16560281]
[1672834448018,1.598,1253.3,1253.2,2.38017019]
[1672834452847,1.598,1253.3,1253.2,3.79449321]
[1672834453481,1.597,1253.3,1253.2,3.79449321]
[1672834453696,1.597,1253.3,1253.2,2.38017019]
[1672834455479,1.597,1253.3,1253.2,3.79449921]
[1672834456107,1.59279015,1253.3,1253.2,4.3921689]
[1672834458743,1.59279015,1253.3,1253.2,7.3994689]
[1672834459062,1.59279015,1253.3,1253.2,4.3921689]
[1672834459266,1.59279015,1253.3,1253.2,7.3994689]
[1672834459797,1.59279015,1253.3,1253.2,4.3921689]
[1672834460004,1.59279015,1253.3,1253.2,9.77968914]
[1672834460211,1.59279015,1253.3,1253.2,6.77238914]
[1672834460421,1.59279015,1253.3,1253.2,7.3994689]
[1672834462219,1.59279015,1253.3,1253.2,9.77974693]
[1672834462420,1.59279015,1253.3,1253.2,7.3994689]
[1672834471467,1.598,1253.4,1253.2,10.5714689]
[1672834471680,19.44685297,1253.7,1253.4,1.595]
[1672834471890,1.587,1253.7,1253.6,1.18922831]
[1672834472092,4.087,1253.7,1253.6,3.68922831]
[1672834472302,1.587,1253.7,1253.6,3.68922831]
[1672834472724,1.587,1253.7,1253.6,4.28384247]
[1672834473353,19.95552411,1254.0,1253.6,10.47914247]
[1672834473354,15.34922411,1254.0,1253.6,10.47914247]
[1672834473560,15.34922411,1254.0,1253.8,4.6053]
[1672834473774,1.111,1254.0,1253.9,3.97218542]
[1672834474303,1.111,1254.0,1253.9,5.57018542]
[1672834474509,1.111,1254.0,1253.9,4.38184247]
[1672834474720,1.111,1254.0,1253.9,4.97645662]
[1672834475038,1.111,1254.0,1253.9,6.38993735]
[1672834475459,1.111,1254.0,1253.9,8.57532061]
[1672834475668,1.111,1254.0,1253.9,8.56673469]
[1672834475875,1.111,1254.0,1253.9,16.56673469]
[1672834476197,15.278,1254.4,1254.0,2.5]
[1672834476513,1.589,1254.4,1254.1,4.6003]
[1672834480509,1.5,1254.3,1254.1,4.6003]
[1672834480933,3.098,1254.3,1254.1,3.0073]
[1672834481139,1.598,1254.2,1254.1,2.5]
[1672834483036,1.598,1254.2,1253.9,5.5903]
[1672834483454,3.187,1254.0,1253.7,3.0073]
[1672834483660,1.598,1253.9,1253.8,2.5]
[1672834484079,4.098,1253.9,1253.8,2.5]
[1672834485134,4.098,1253.9,1253.7,4.0073]
[1672834485342,1.587,1253.8,1253.7,4.0073]
[1672834488184,1.587,1253.8,1253.7,3.0073]
[1672834488605,1.587,1253.8,1253.6,4.098]
[1672834491655,1.587,1253.8,1253.7,3.0073]
[1672834493650,4.085,1253.9,1253.7,3.0073]
[1672834495019,4.085,1253.9,1253.6,4.098]
[1672834498488,12.085,1253.9,1253.6,4.098]
[1672834498697,12.085,1253.9,1253.6,1.598]
[1672834498909,1.598,1253.7,1253.5,8.28832833]
[1672834502065,1.598,1253.7,1253.5,10.05635386]
[1672834502277,1.598,1253.8,1253.6,1.584]
[1672834502486,1.598,1253.8,1253.6,2.76702833]
[1672834503852,1.598,1253.8,1253.7,3.0073]
[1672834504586,1.598,1253.9,1253.7,5.78332833]
[1672834504907,4.098,1254.0,1253.8,1.598]
[1672834505320,1.598,1254.0,1253.8,1.598]
[1672834506377,1.598,1254.0,1253.8,2.78102833]
[1672834507740,1.598,1254.0,1253.8,5.78832833]
[1672834508476,1.598,1254.0,1253.8,4.6053]
[1672834509945,1.598,1254.0,1253.8,5.78832833]
[1672834510154,1.598,1254.0,1253.8,4.6053]
[1672834510580,1.598,1254.0,1253.8,5.78832833]
[1672834512257,1.596,1254.0,1253.8,4.19032833]
[1672834515946,1.597,1254.0,1253.8,4.19032833]
[1672834516163,1.597,1254.0,1253.8,5.96489825]
[1672834517206,1.597,1254.0,1253.8,4.19032833]
[1672834517828,1.597,1254.0,1253.8,1.18302833]
[1672834518463,1.597,1254.0,1253.8,2.95759825]
[1672834519623,1.597,1253.9,1253.8,2.95759825]
[1672834519935,1.597,1253.9,1253.8,1.18302833]
[1672834520668,1.597,1253.9,1253.8,2.95759825]
[1672834521829,1.597,1253.9,1253.8,1.18302833]
[1672834522144,1.597,1253.9,1253.8,2.95759825]
[1672834524140,1.597,1253.9,1253.8,1.18302833]
[1672834524349,1.597,1253.9,1253.8,2.95759825]
[1672834524663,1.597,1253.9,1253.8,1.18302833]
[1672834525401,1.597,1253.9,1253.8,1.77456992]
[1672834526137,1.597,1253.9,1253.8,2.96285557]
[1672834526347,1.597,1253.9,1253.8,1.18828565]
[1672834529494,1.597,1253.9,1253.7,2.96285557]
[1672834529916,4.6043,1253.9,1253.7,2.96285557]
[1672834530121,4.6043,1253.9,1253.8,1.18828565]
[1672834530333,4.6043,1253.9,1253.7,2.96285557]
[1672834531277,4.6043,1253.9,1253.8,1.18828565]
[1672834531916,4.6043,1253.9,1253.7,2.96285557]
[1672834533486,3.0073,1253.9,1253.7,2.96285557]
[1672834533702,1.597,1253.8,1253.7,2.96285557]
[1672834534542,1.597,1253.8,1253.7,1.18828565]
[1672834535165,1.597,1253.8,1253.6,2.96285557]
[1672834535374,1.597,1253.7,1253.6,1.77456992]
[1672834538113,1.597,1253.7,1253.6,2.96259]
[1672834539269,1.597,1253.7,1253.6,1.77456992]
[1672834541156,1.597,1253.7,1253.6,2.96249032]
[1672834541371,1.597,1253.7,1253.6,1.77456992]
[1672834542738,1.597,1253.7,1253.6,2.96242686]
[1672834549140,4.6043,1253.7,1253.6,2.96242686]
[1672834549352,4.6043,1253.7,1253.6,1.18785694]
[1672834550829,1.597,1253.7,1253.6,1.18785694]
[1672834551022,12.6043,1253.7,1253.5,2.96242686]
[1672834553135,12.6043,1253.7,1253.5,1.18785694]
[1672834553551,1.589,1253.6,1253.5,1.18785694]
[1672834555020,1.589,1253.6,1253.4,2.96242686]
[1672834555233,1.597,1253.5,1253.4,2.96242686]
[1672834557758,1.597,1253.5,1253.4,1.77456992]
[1672834558281,1.588,1253.5,1253.4,1.77456992]
[1672834558901,1.588,1253.5,1253.4,4.14066315]
[1672834559325,1.588,1253.5,1253.4,6.64066315]
[1672834560272,1.588,1253.5,1253.4,1.77456992]
[1672834562489,1.588,1253.5,1253.4,4.14066315]
[1672834563320,1.588,1253.5,1253.4,1.77456992]
[1672834564168,1.588,1253.5,1253.4,4.14066315]
[1672834566062,1.588,1253.5,1253.4,1.77456992]
[1672834568160,1.588,1253.5,1253.4,4.14066315]
[1672834569843,1.588,1253.5,1253.4,1.77456992]
[1672834570047,1.588,1253.5,1253.4,4.86609323]
[1672834572156,1.588,1253.5,1253.4,6.28014656]
[1672834572366,1.588,1253.5,1253.4,4.86609323]
[1672834573414,1.588,1253.5,1253.4,6.28013748]
[1672834573632,1.597,1253.5,1253.4,6.28013748]
[1672834574566,1.597,1253.5,1253.4,6.64945493]
[1672834576038,1.597,1253.5,1253.4,4.86609323]
[1672834577312,1.597,1253.5,1253.4,1.78341799]
[1672834577522,1.597,1253.5,1253.4,4.28341799]
[1672834577729,4.6043,1253.5,1253.4,1.78341799]
[1672834578046,1.597,1253.5,1253.4,1.78341799]
[1672834578466,1.597,1253.5,1253.4,4.14951122]
[1672834578885,1.597,1253.5,1253.4,1.78341799]
[1672834579202,1.597,1253.5,1253.4,4.14951122]
[1672834579724,1.597,1253.5,1253.4,1.78341799]
[1672834580137,1.597,1253.5,1253.4,4.14951122]
[1672834580568,11.187,1253.5,1253.4,4.14951122]
[1672834580773,11.187,1253.5,1253.4,2.97256818]
[1672834581822,14.1943,1253.5,1253.4,2.97256818]
[1672834584143,14.1943,1253.5,1253.4,2.96536912]
[1672834584350,14.1943,1253.5,1253.4,1.18915019]
[1672834593907,14.1943,1253.5,1253.3,3.78030072]
[1672834594120,1.583,1253.4,1253.3,3.78030072]
[1672834613777,1.583,1253.4,1253.3,6.73791725]
[1672834613980,1.583,1253.4,1253.3,3.78030072]
[1672834615983,1.583,1253.4,1253.3,6.73791725]
[1672834617454,1.583,1253.4,1253.3,3.78030072]
[1672834617665,1.583,1253.4,1253.3,6.73791725]
[1672834618814,1.583,1253.4,1253.3,3.78030072]
[1672834619657,1.583,1253.4,1253.3,6.73791725]
[1672834620184,1.583,1253.4,1253.3,6.75328855]
[1672834621235,1.583,1253.4,1253.3,4.37182402]
[1672834623226,1.583,1253.4,1253.3,3.79595672]
[1672834628697,1.583,1253.4,1253.3,3.79599217]
[1672834629851,1.583,1253.4,1253.3,2.38174923]
[1672834637750,1.583,1253.4,1253.2,2.38174923]
[1672834637952,1.597,1253.3,1253.2,3.79607924]
[1672834639216,3.194,1253.3,1253.2,3.79607924]
[1672834646275,11.194,1253.3,1253.2,3.79607924]
[1672834646500,15.7913,1253.3,1253.2,2.97602969]
[1672834646910,15.7913,1253.3,1253.2,4.16651325]
[1672834648272,12.784,1253.3,1253.2,4.16651325]
[1672834648473,17.2913,1253.3,1253.2,4.16651325]
[1672834649744,17.2913,1253.3,1253.2,2.38096707]
[1672834651848,17.2913,1253.3,1253.2,2.3786927]
[1672834653643,17.2913,1253.3,1253.2,1.18820914]
[1672834653840,17.2913,1253.3,1253.2,2.3786927]
[1672834654055,17.2913,1253.3,1253.2,1.18820914]
[1672834654258,17.2913,1253.3,1253.2,2.3786927]
[1672834654475,15.7913,1253.3,1253.2,2.3786927]
[1672834655620,15.7913,1253.3,1253.2,1.18820914]
[1672834659613,12.784,1253.3,1253.2,1.18820914]
[1672834659810,15.284,1253.3,1253.2,1.18820914]
[1672834660018,18.2913,1253.3,1253.2,1.18820914]
[1672834663067,15.284,1253.3,1253.2,1.18820914]
[1672834663281,18.2913,1253.3,1253.2,1.18820914]
[1672834666330,18.2913,1253.3,1253.2,2.3786927]
[1672834666642,18.2913,1253.3,1253.2,1.18820914]
[1672834671268,15.284,1253.3,1253.2,1.18820914]
[1672834671581,18.2913,1253.3,1253.2,1.18820914]
[1672834671792,15.284,1253.3,1253.2,1.18820914]
[1672834672000,18.2913,1253.3,1253.2,1.18820914]
[1672834672213,15.7913,1253.3,1253.2,1.18820914]
[1672834672527,15.7913,1253.3,1253.2,2.3786927]
[1672834673049,6.2013,1253.3,1253.2,2.3786927]
[1672834673265,3.194,1253.3,1253.2,4.16423888]
[1672834678420,4.694,1253.3,1253.2,4.16423888]
[1672834678622,3.194,1253.3,1253.2,2.3786927]
[1672834680839,11.194,1253.3,1253.2,2.3786927]
[1672834681049,12.694,1253.3,1253.2,2.3786927]
[1672834684414,15.7013,1253.3,1253.2,2.3786927]
[1672834686095,15.69680879,1253.3,1253.2,2.3786927]
[1672834688193,12.68950879,1253.3,1253.2,2.3786927]
[1672834688404,15.69680879,1253.3,1253.2,2.3786927]
[1672834688932,19.28273631,1253.3,1253.2,2.3786927]
[1672834689662,15.69680879,1253.3,1253.2,2.3786927]
[1672834690509,15.69680879,1253.3,1253.2,1.18820914]
[1672834690510,26.87580879,1253.3,1253.2,1.18820914]
[1672834690720,1.1814,1253.2,1253.1,1.19048356]
[1672834690932,12.3754,1253.2,1253.1,1.19048356]
[1672834691243,15.96132752,1253.2,1253.1,1.19048356]
[1672834691660,15.96132752,1253.2,1253.0,2.97602974]
[1672834691871,15.7883,1253.1,1253.0,2.97602974]
[1672834693446,15.7883,1253.1,1253.0,1.78554618]
[1672834694185,15.7883,1253.1,1253.0,2.97599005]
[1672834695021,15.7883,1253.1,1253.0,1.78554618]
[1672834695236,15.7883,1253.1,1253.0,2.97597813]
[1672834695442,15.7883,1253.1,1253.0,1.78554618]
[1672834695761,15.7883,1253.1,1253.0,2.9759785]
[1672834696287,15.7883,1253.1,1253.0,1.78554618]
[1672834697661,12.781,1253.1,1253.0,1.78554618]
[1672834699551,12.781,1253.1,1253.0,2.97575245]
[1672834700490,4.781,1253.1,1253.0,2.97575245]
[1672834700704,3.184,1253.1,1253.0,2.38174923]
[1672834703216,1.589,1253.1,1253.0,1.41441047]
[1672834703542,1.597,1253.2,1253.0,5.969027]
[1672834703750,1.597,1253.2,1253.1,10.08748756]
[1672834703957,1.597,1253.2,1253.1,7.70924451]
[1672834705985,1.597,1253.2,1253.1,10.08664644]
[1672834706204,1.597,1253.2,1253.1,7.07934644]
[1672834706399,1.597,1253.2,1253.1,7.11340778]
[1672834708607,1.597,1253.2,1253.1,4.10610778]
[1672834709553,1.597,1253.2,1253.1,2.69169731]
[1672834709767,1.597,1253.2,1253.1,4.10605534]
[1672834710186,1.597,1253.2,1253.1,7.11335534]
[1672834710598,1.597,1253.2,1253.1,5.69899731]
[1672834711861,1.597,1253.2,1253.1,7.11335634]
[1672834712074,1.597,1253.2,1253.1,5.69899731]
[1672834712600,1.597,1253.2,1253.1,7.11335264]
[1672834714802,1.597,1253.2,1253.1,5.69899731]
[1672834715227,1.597,1253.2,1253.1,7.11334478]
[1672834716168,1.597,1253.2,1253.1,8.52769475]
[1672834716378,1.597,1253.2,1253.1,7.11334478]
[1672834716575,1.597,1253.2,1253.1,8.5276982]
[1672834716795,1.597,1253.2,1253.1,7.11334478]
[1672834717214,1.597,1253.2,1253.1,8.52769797]
[1672834717426,1.597,1253.2,1253.1,7.11334478]
[1672834717636,1.597,1253.2,1253.1,8.52769338]
[1672834717942,1.597,1253.2,1253.1,7.93304898]
[1672834718372,1.597,1253.2,1253.1,10.31045091]
[1672834718573,1.597,1253.2,1253.1,7.93304898]
[1672834719097,1.597,1253.2,1253.1,4.92574898]
[1672834720252,4.6043,1253.2,1253.1,4.33168299]
[1672834720987,12.6043,1253.2,1253.1,4.33168299]
[1672834725819,12.6043,1253.2,1253.1,3.14299145]
[1672834728341,12.6043,1253.2,1253.1,4.33168299]
[1672834728756,1.597,1253.2,1253.1,4.33168299]
[1672834733601,3.194,1253.2,1253.1,4.33168299]
[1672834736331,6.2013,1253.2,1253.1,4.33168299]
[1672834738227,14.2013,1253.2,1253.1,4.33168299]
[1672834738539,14.2013,1253.2,1253.1,3.14299145]
[1672834740640,11.194,1253.2,1253.1,3.14299145]
[1672834740854,14.2013,1253.2,1253.1,3.14299145]
[1672834755253,17.78722752,1253.2,1253.1,3.14299145]
[1672834756616,14.2013,1253.2,1253.1,3.14299145]
[1672834757878,17.78722752,1253.2,1253.1,3.14299145]
[1672834760089,14.77992752,1253.2,1253.1,3.14299145]
[1672834760301,17.78722752,1253.2,1253.1,3.14299145]
[1672834760928,14.77992752,1253.2,1253.1,3.14299145]
[1672834761247,17.78722752,1253.2,1253.1,3.14299145]
[1672834765445,17.78722752,1253.2,1253.1,3.13761445]
[1672834767544,14.2013,1253.2,1253.1,3.13761445]
[1672834768175,17.78722752,1253.2,1253.1,3.13761445]
[1672834771647,9.78722752,1253.2,1253.1,3.13761445]
[1672834774585,13.95511915,1253.2,1253.1,3.13761445]
[1672834775016,9.78426618,1253.2,1253.1,3.13761445]
[1672834777839,6.77696618,1253.2,1253.1,3.13761445]
[1672834778053,9.78426618,1253.2,1253.1,3.13761445]
[1672834780365,6.19833866,1253.2,1253.1,6.10906352]
[1672834780573,6.19833866,1253.2,1253.1,4.32630599]
[1672834781205,9.78426618,1253.2,1253.1,4.32630599]
[1672834783516,6.19833866,1253.2,1253.1,4.32630599]
[1672834783728,9.78426618,1253.2,1253.1,4.32630599]
[1672834783936,6.19833866,1253.2,1253.1,4.32630599]
[1672834784567,9.78426618,1253.2,1253.1,4.32630599]
[1672834788247,9.78426618,1253.2,1253.1,3.13761445]
[1672834788457,21.56219163,1253.2,1252.9,2.97144907]
[1672834788665,7.7983,1253.0,1252.9,2.97144907]
[1672834788879,15.7983,1253.0,1252.9,2.97144907]
[1672834789091,15.7983,1253.0,1252.9,1.78275753]
[1672834789924,15.7983,1253.0,1252.9,2.97428052]
[1672834792141,15.7983,1253.0,1252.9,1.19152299]
[1672834792349,15.7983,1253.0,1252.9,2.97428052]
[1672834793082,15.7983,1253.0,1252.9,1.19152299]
[1672834793504,15.7983,1253.0,1252.9,2.97428052]
[1672834793706,15.7983,1253.0,1252.9,1.19152299]
[1672834801911,15.7983,1253.0,1252.9,2.97428052]
[1672834805489,14.2013,1253.0,1252.9,1.78275753]
[1672834805699,11.194,1253.0,1252.9,1.78275753]
[1672834808969,3.194,1253.0,1252.9,1.78275753]
[1672834811695,3.194,1253.0,1252.9,2.97322874]
[1672834811913,3.194,1253.0,1252.9,1.78275753]
[1672834813165,3.194,1253.0,1252.9,2.97328806]
[1672834813587,3.194,1253.0,1252.9,1.78275753]
[1672834814643,3.194,1253.0,1252.9,2.97332504]
[1672834815058,1.597,1253.0,1252.9,2.97332504]
[1672834816747,1.597,1253.0,1252.9,1.78275753]
[1672834822200,1.597,1253.0,1252.9,2.97382845]
[1672834822411,1.597,1253.0,1252.9,1.78275753]
[1672834822838,1.597,1253.0,1252.9,2.97383602]
[1672834823048,1.597,1253.0,1252.9,2.97383609]
[1672834823359,1.597,1253.0,1252.9,1.78275753]
[1672834824203,3.194,1253.0,1252.9,1.78275753]
[1672834825460,11.194,1253.0,1252.9,1.78275753]
[1672834825666,11.194,1253.0,1252.9,1.19136346]
[1672834825988,11.194,1253.0,1252.9,3.69136346]
[1672834826192,11.194,1253.0,1252.9,4.28275753]
[1672834826825,11.194,1253.0,1252.9,2.97414257]
[1672834827766,11.194,1253.0,1252.9,1.19138504]
[1672834828619,12.694,1253.0,1252.9,1.19138504]
[1672834831672,15.7013,1253.0,1252.9,1.19138504]
[1672834837559,12.694,1253.0,1252.9,1.19138504]
[1672834837771,15.7013,1253.0,1252.9,1.19138504]
[1672834838090,12.694,1253.0,1252.9,1.19138504]
[1672834838301,15.7013,1253.0,1252.9,1.19138504]
[1672834839040,12.694,1253.0,1252.9,1.19138504]
[1672834839359,15.7013,1253.0,1252.9,1.19138504]
[1672834840405,19.29240416,1253.0,1252.8,2.97414257]
[1672834840614,1.597,1252.9,1252.8,2.97414257]
[1672834843868,12.6043,1252.9,1252.8,2.97414257]
[1672834844715,9.597,1252.9,1252.8,2.97414257]
[1672834845026,12.6043,1252.9,1252.8,2.97414257]
[1672834846501,9.597,1252.9,1252.8,2.97414257]
[1672834846709,9.597,1252.9,1252.8,4.16409217]
[1672834846914,1.597,1252.9,1252.8,6.29220376]
[1672834847129,1.597,1252.9,1252.8,6.29212973]
[1672834848288,1.597,1252.9,1252.8,4.87740193]
[1672834848704,1.597,1252.9,1252.8,1.78677192]
[1672834848910,1.597,1252.9,1252.8,4.28677192]
[1672834849335,12.6043,1252.9,1252.8,4.28677192]
[1672834849651,4.6043,1252.9,1252.8,4.87740193]
[1672834851545,1.597,1252.9,1252.8,4.87740193]
[1672834852288,1.597,1252.9,1252.8,6.66447059]
[1672834852498,1.597,1252.9,1252.8,4.87740193]
[1672834853863,1.597,1252.9,1252.8,6.29215248]
[1672834854386,1.597,1252.9,1252.8,6.29216219]
[1672834855857,1.597,1252.9,1252.8,4.87740193]
[1672834856068,1.597,1252.9,1252.8,6.66454226]
[1672834858269,1.597,1252.9,1252.8,6.2921656]
[1672834858901,1.5923696,1252.9,1252.8,6.2921656]
[1672834872040,1.5923696,1252.9,1252.8,3.7921656]
[1672834873098,1.5923696,1252.9,1252.8,3.79216746]
[1672834873507,1.597,1252.9,1252.8,3.79216746]
[1672834878350,1.597,1252.9,1252.8,4.38800419]
[1672834882762,1.593,1253.0,1252.8,3.00076553]
[1672834882975,4.5791348,1253.1,1252.9,8.98744916]
[1672834883186,7.0881348,1253.2,1253.0,3.79693853]
[1672834883508,4.5881348,1253.2,1253.1,2.97595973]
[1672834886333,6.0881348,1253.2,1253.1,1.19038389]
[1672834888547,14.0881348,1253.2,1253.1,1.19038389]
[1672834889179,14.0881348,1253.2,1253.1,2.97595973]
[1672834889180,4.5881348,1253.2,1253.1,2.97595973]
[1672834889384,1.597,1253.2,1253.1,1.19038389]
[1672834889599,1.597,1253.2,1253.1,2.97595973]
[1672834890656,1.597,1253.2,1253.1,5.98325973]
[1672834891595,1.597,1253.2,1253.1,4.79287584]
[1672834893490,1.597,1253.2,1253.1,5.98176376]
[1672834893702,1.597,1253.2,1253.1,2.97446376]
[1672834893913,1.597,1253.2,1253.1,5.98176376]
[1672834894960,1.597,1253.2,1253.1,5.98172586]
[1672834896851,3.097,1253.2,1253.1,5.98172586]
[1672834897056,1.597,1253.2,1253.1,5.98172586]
[1672834897898,1.597,1253.2,1253.1,2.97442586]
[1672834899264,3.097,1253.2,1253.1,1.18885002]
[1672834900318,1.597,1253.2,1253.1,1.18885002]
[1672834900842,3.097,1253.2,1253.0,5.98172586]
[1672834901479,1.597,1253.2,1253.1,1.18885002]
[1672834905261,1.597,1253.2,1253.1,2.97442586]
[1672834911037,1.597,1253.2,1253.1,1.18885002]
[1672834914828,4.097,1253.2,1253.1,1.18885002]
[1672834915033,1.597,1253.2,1253.1,1.18885002]
[1672834915351,4.5881348,1253.2,1253.1,2.97442586]
[1672834915775,7.0881348,1253.2,1253.1,1.18885002]
[1672834915978,4.5881348,1253.2,1253.1,1.18885002]
[1672834916822,7.0881348,1253.2,1253.1,1.18885002]
[1672834917661,4.5881348,1253.2,1253.1,1.18885002]
[1672834917868,7.0881348,1253.2,1253.1,1.18885002]
[1672834918294,4.097,1253.2,1253.0,2.97442586]
[1672834918498,2.5,1253.2,1253.1,1.18885002]
[1672834918708,4.092,1253.2,1253.1,1.18885002]
[1672834918918,4.092,1253.2,1253.0,2.97442586]
[1672834919129,4.57916682,1253.1,1253.0,2.97442586]
[1672834919346,4.57916682,1253.1,1253.0,1.78557584]
[1672834922601,4.57916682,1253.1,1253.0,2.97711733]
[1672834923129,4.57716682,1253.2,1253.0,8.38798578]
[1672834923446,4.57716682,1253.2,1253.1,1.78632304]
[1672834923857,7.58446682,1253.2,1253.1,2.97721918]
[1672834924072,6.1023,1253.2,1253.1,1.19089614]
[1672834926175,3.095,1253.2,1253.1,1.19089614]
[1672834932382,6.08437324,1253.2,1253.1,1.19089614]
[1672834933648,3.095,1253.2,1253.1,1.19089614]
[1672834933962,11.095,1253.2,1253.1,1.19089614]
[1672834936697,11.095,1253.2,1253.0,2.97721918]
[1672834936897,4.58574763,1253.1,1253.0,2.97721918]
[1672834937432,4.58574763,1253.1,1253.0,1.78632304]
[1672834938265,1.5910056,1253.1,1253.0,9.7812092]
[1672834938482,3.097,1253.2,1253.0,8.99706532]
[1672834938691,3.097,1253.2,1253.1,4.16686389]
[1672834940795,6.08674763,1253.2,1253.1,2.97648719]
[1672834940998,14.07674763,1253.2,1253.1,2.97648719]
[1672834941214,17.08404763,1253.2,1253.1,2.97648719]
[1672834944903,17.09404763,1253.2,1253.1,2.97648719]
[1672834946162,9.09404763,1253.2,1253.1,2.97648719]
[1672834946369,6.08674763,1253.2,1253.1,1.78579881]
[1672834946581,4.58674763,1253.2,1253.1,1.78579881]
[1672834947313,1.597,1253.2,1253.1,2.38106508]
[1672834947526,1.597,1253.2,1253.1,4.1672662]
[1672834948157,13.689,1253.4,1253.1,18.76731252]
[1672834948365,4.17085297,1253.8,1253.3,13.38801586]
[1672834948581,4.17085297,1253.8,1253.7,3.0073]
[1672834948795,28.52210945,1254.4,1253.7,3.0073]
[1672834948796,13.689,1254.4,1253.7,12.42083609]
[1672834949003,13.689,1254.4,1254.1,1.18847838]
[1672834949214,15.285,1254.4,1254.1,4.56819595]
[1672834949528,13.689,1254.4,1254.3,2.77347838]
[1672834949735,2.7684,1254.6,1254.3,3.36771757]
[1672834949948,1.587,1254.6,1254.4,2.77164111]
[1672834950357,23.279,1254.7,1254.5,1.597]
[1672834950574,2.5,1254.6,1254.5,1.597]
[1672834950893,2.5,1254.6,1254.5,4.38164111]
[1672834951301,1.597,1254.9,1254.5,4.38164111]
[1672834951517,23.286,1255.0,1254.8,1.597]
[1672834951723,1.597,1255.0,1254.8,1.597]
[1672834952251,4.097,1254.9,1254.7,2.78372733]
[1672834952463,2.7644,1255.2,1254.9,3.184]
[1672834952679,10.7644,1255.2,1255.0,1.594]
[1672834952887,2.5,1255.1,1255.0,1.594]
[1672834953202,10.5,1255.1,1255.0,1.594]
[1672834954039,10.5,1255.1,1254.7,1.594]
[1672834954040,3.194,1255.1,1254.7,1.594]
[1672834954257,2.5,1254.8,1254.7,1.594]
[1672834954458,2.27684798,1254.8,1254.7,1.594]
[1672834954673,2.77684798,1254.8,1254.7,1.594]
[1672834957831,2.77684798,1254.8,1254.7,1.597]
[1672834958459,2.77684798,1254.8,1254.7,4.6043]
[1672834959720,4.37384798,1254.8,1254.6,0.0393]
[1672834959931,1.597,1254.7,1254.6,0.0393]
[1672834961293,9.597,1254.7,1254.5,1.585]
[1672834961504,1.593,1254.6,1254.4,1.6363]
[1672834961825,9.588,1254.7,1254.5,4.6296]
[1672834962035,4.37384798,1254.8,1254.5,4.6296]
[1672834962553,2.77684798,1254.8,1254.7,3.0073]
[1672834962976,8.97,1255.0,1254.7,3.0466]
[1672834963187,1.596,1254.9,1254.7,3.0466]